bitfinex/quotes_BTCUSD_20251217
["timestamp","ask_amount","ask_price","bid_price","bid_amount"]
[1766009649797,0.0907,86273.0,86267.0,0.013895]
[1766009650356,0.91104,86273.0,86256.0,0.17541]
[1766009650670,0.6962,86269.0,86252.0,0.1950615]
[1766009650868,0.6962,86269.0,86254.0,0.15705]
[1766009651317,0.0907,86269.0,86254.0,0.15705]
[1766009653894,0.0907,86269.0,86252.0,0.013895]
[1766009653895,0.0907,86261.0,86252.0,0.013895]
[1766009654144,0.0907,86261.0,86251.0,0.00122274]
[1766009654145,0.63060533,86264.0,86251.0,0.00122274]
[1766009654351,0.0907,86261.0,86251.0,2.74e-06]
[1766009654758,0.61273,86260.0,86251.0,2.74e-06]
[1766009654927,0.08235972,86261.0,86251.0,2.74e-06]
[1766009655127,0.08235972,86261.0,86224.0,0.04645897]
[1766009655128,0.61273,86260.0,86224.0,0.03486128]
[1766009655334,0.61273,86260.0,86235.0,0.15705]
[1766009655335,0.0907,86249.0,86235.0,0.15705]
[1766009655539,0.0907,86247.0,86233.0,0.01836]
[1766009655902,0.90684,86247.0,86232.0,0.01836]
[1766009656229,0.90684,86247.0,86221.0,0.013895]
[1766009656230,0.81614,86246.0,86221.0,0.013895]
[1766009656442,0.63060533,86250.0,86227.0,0.01836]
[1766009656443,0.0907,86243.0,86227.0,0.01836]
[1766009656647,0.20341,86238.0,86236.0,0.013895]
[1766009657051,0.0907,86242.0,86236.0,0.013895]
[1766009659203,0.63060533,86246.0,86236.0,0.013895]
[1766009659204,0.0907,86241.0,86236.0,0.013895]
[1766009659411,0.81614,86243.0,86227.0,0.17106241]
[1766009659582,0.0907,86239.0,86235.0,0.013895]
[1766009659811,0.09063954,86239.0,86235.0,0.013895]
[1766009660131,0.09063954,86239.0,86227.0,0.17106241]
[1766009660132,0.61273,86235.0,86227.0,0.00011241]
[1766009660339,0.02995447,86248.0,86227.0,0.00011241]
[1766009660340,0.20341,86230.0,86227.0,0.00011241]
[1766009661032,0.63060533,86237.0,86227.0,0.00011241]
[1766009661033,0.81614,86228.0,86227.0,0.00011241]
[1766009661364,0.81614,86228.0,86227.0,0.00087979]
[1766009661807,0.90684,86228.0,86227.0,0.00087979]
[1766009662208,0.29411,86228.0,86227.0,0.00087979]
[1766009663533,0.90845287,86228.0,86227.0,0.00087979]
[1766009663694,0.90845287,86228.0,86221.0,0.013895]
[1766009663695,0.20341,86224.0,86221.0,0.013895]
[1766009664096,0.09231287,86228.0,86221.0,0.013895]
[1766009665259,0.09231287,86228.0,86221.0,0.014895]
[1766009665467,0.09231287,86228.0,86221.0,0.013895]
[1766009665671,0.0907,86227.0,86221.0,0.013895]
[1766009665998,0.0907,86225.0,86221.0,0.013895]
[1766009666167,0.0907,86223.0,86221.0,0.013895]
[1766009666434,0.089559,86223.0,86222.0,0.17183]
[1766009666618,0.089559,86223.0,86221.0,0.013895]
[1766009666869,0.00161287,86228.0,86221.0,0.013895]
[1766009669256,0.00161287,86228.0,86221.0,0.014895]
[1766009669822,0.20341,86231.0,86221.0,0.01650787]
[1766009671941,0.0907,86230.0,86221.0,0.01550787]
[1766009672117,0.0907,86229.0,86221.0,0.01550787]
[1766009672326,0.0907,86228.0,86221.0,0.01550787]
[1766009672479,0.90684,86228.0,86221.0,0.01550787]
[1766009674276,0.29411,86228.0,86221.0,0.01550787]
[1766009674927,0.29411,86228.0,86221.0,0.01650787]
[1766009675703,0.90684,86228.0,86221.0,0.01650787]
[1766009677351,0.61273,86229.0,86221.0,0.01650787]
[1766009677595,0.0907,86228.0,86221.0,0.01650787]
[1766009678203,0.0907,86228.0,86221.0,0.01550787]
[1766009679651,0.0907,86228.0,86221.0,0.01650787]
[1766009682225,0.0907,86230.0,86221.0,0.01650787]
[1766009682442,0.0907,86228.0,86221.0,0.01650787]
[1766009683234,0.78584,86229.0,86221.0,0.01650787]
[1766009683434,0.0907,86228.0,86221.0,0.01650787]
[1766009683862,0.0907,86228.0,86221.0,0.01550787]
[1766009684656,0.0907,86228.0,86221.0,0.01650787]
[1766009684852,0.0907,86228.0,86221.0,0.01550787]
[1766009685259,0.0907,86228.0,86221.0,0.01650787]
[1766009685661,0.0907,86228.0,86221.0,0.01550787]
[1766009685875,0.0907,86228.0,86221.0,0.01650787]
[1766009686894,0.01819683,86235.0,86221.0,0.01650787]
[1766009687139,1.28513574,86231.0,86221.0,0.01650787]
[1766009687345,1.28513574,86231.0,86221.0,0.01550787]
[1766009687636,1.50758574,86231.0,86221.0,0.01650787]
[1766009687847,1.50758574,86231.0,86221.0,0.01550787]
[1766009688053,0.72174574,86231.0,86221.0,0.01550787]
[1766009688292,0.0907,86229.0,86221.0,0.01550787]
[1766009689090,0.0907,86228.0,86221.0,0.01550787]
[1766009689307,0.87654,86228.0,86221.0,0.01550787]
[1766009689702,0.22245,86223.0,86221.0,0.01550787]
[1766009689928,0.0907,86222.0,86221.0,0.01550787]
[1766009690307,0.0907,86222.0,86219.0,0.00025585]
[1766009690308,0.65409,86222.0,86219.0,0.00025585]
[1766009690562,0.65409,86222.0,86215.0,0.013895]
[1766009691114,0.65409,86222.0,86221.0,0.001]
[1766009691318,0.089555,86222.0,86215.0,0.013895]
[1766009691528,0.78584,86224.0,86215.0,0.013895]
[1766009693266,0.22245,86224.0,86215.0,0.013895]
[1766009693584,0.0907,86223.0,86215.0,0.013895]
[1766009695298,0.0907,86223.0,86215.0,0.014895]
[1766009695550,0.0907,86225.0,86215.0,0.014895]
[1766009696393,0.0907,86229.0,86217.0,0.29558]
[1766009697336,0.0907,86232.0,86228.0,0.013895]
[1766009697543,0.001145,86228.0,86215.0,0.013895]
[1766009697755,0.001145,86228.0,86216.0,0.29558]
[1766009698192,0.0907,86230.0,86216.0,0.29558]
[1766009698415,0.87654,86230.0,86216.0,0.29558]
[1766009700416,0.87754,86230.0,86216.0,0.29558]
[1766009700796,0.87654,86230.0,86216.0,0.29558]
[1766009700998,0.87654,86230.0,86215.0,0.013895]
[1766009700999,0.22245,86228.0,86215.0,0.013895]
[1766009701344,0.0907,86227.0,86215.0,0.013895]
[1766009701674,0.0198097,86235.0,86215.0,0.013895]
[1766009701675,0.01819683,86235.0,86216.0,0.01391853]
[1766009701883,0.04291478,86249.0,86216.0,0.01391853]
[1766009701884,0.22245,86246.0,86234.0,0.013895]
[1766009702085,0.78584,86241.0,86234.0,0.01275]
[1766009703709,0.0907,86240.0,86234.0,0.01275]
[1766009704557,0.0907,86240.0,86224.0,0.01836]
[1766009704558,0.78584,86239.0,86224.0,0.01836]
[1766009704692,0.56339,86241.0,86230.0,0.013895]
[1766009704892,0.22245,86239.0,86230.0,0.013895]
[1766009705098,0.0907,86238.0,86230.0,0.013895]
[1766009705306,0.0907,86236.0,86230.0,0.013895]
[1766009705726,0.089555,86236.0,86230.0,0.013895]
[1766009706746,0.00161287,86238.0,86230.0,0.013895]
[1766009712701,0.00161287,86238.0,86220.0,0.01836]
[1766009712702,0.001145,86230.0,86220.0,0.01836]
[1766009712908,0.001145,86230.0,86229.0,0.013895]
[1766009713286,0.81893,86234.0,86229.0,0.013895]
[1766009713501,0.21607,86234.0,86229.0,0.013895]
[1766009714228,0.21607,86234.0,86229.0,0.014895]
[1766009714450,0.21607,86234.0,86229.0,0.013895]
[1766009715085,0.21607,86234.0,86229.0,0.014895]
[1766009715545,0.00161287,86238.0,86229.0,0.014895]
[1766009716342,0.00161287,86238.0,86229.0,0.013895]
[1766009716522,0.00161287,86238.0,86229.0,0.218495]
[1766009716726,0.00161287,86238.0,86230.0,0.0218495]
[1766009718648,0.00161287,86238.0,86229.0,0.218495]
[1766009719103,0.00011233,86246.0,86229.0,0.218495]
[1766009719478,0.60286,86245.0,86229.0,0.218495]
[1766009719656,0.81893,86245.0,86229.0,0.218495]
[1766009719863,0.21607,86245.0,86229.0,0.218495]
[1766009720081,0.60286,86244.0,86229.0,0.2403445]
[1766009721324,0.0907,86243.0,86229.0,0.2403445]
[1766009722303,0.0907,86244.0,86229.0,0.2403445]
[1766009722630,0.0907,86244.0,86229.0,0.218495]
[1766009722927,0.10687977,86245.0,86229.0,0.218495]
[1766009724121,0.71135264,86245.0,86229.0,0.218495]
[1766009724542,0.71235264,86245.0,86229.0,0.218495]
[1766009725088,0.71135264,86245.0,86229.0,0.218495]
[1766009725310,0.60286,86243.0,86230.0,0.0218495]
[1766009725547,0.60286,86243.0,86230.0,0.1357495]
[1766009726600,0.00161287,86245.0,86230.0,0.1139]
[1766009727165,2.33e-06,86246.0,86232.0,0.1139]
[1766009727347,2.33e-06,86246.0,86232.0,0.13387]
[1766009727548,0.00119107,86249.0,86232.0,0.13387]
[1766009727549,0.00119107,86249.0,86246.0,0.11379]
[1766009727550,3.4e-06,86249.0,86246.0,0.11379]
[1766009727747,3.4e-06,86249.0,86242.0,0.013895]
[1766009727748,3.4e-06,86249.0,86248.0,0.1154]
[1766009728846,0.21607,86272.0,86249.0,0.11379]
[1766009729044,0.21607,86272.0,86262.0,0.013895]
[1766009729045,0.21618237,86272.0,86262.0,0.013895]
[1766009729463,0.00095879,86271.0,86263.0,0.11379]
[1766009729665,0.00011237,86272.0,86264.0,0.11283]
[1766009729870,0.00011237,86272.0,86264.0,0.11444]
[1766009731191,0.00011237,86272.0,86264.0,0.00161]
[1766009732196,0.00011237,86272.0,86268.0,0.013895]
[1766009732597,0.0002,86283.0,86268.0,0.013895]
[1766009732796,0.00057448,86283.0,86268.0,0.013895]
[1766009733282,4.48e-06,86283.0,86268.0,0.013895]
[1766009734250,4.48e-06,86283.0,86281.0,0.013895]
[1766009734648,0.00035142,86282.0,86281.0,0.013895]
[1766009735417,0.00035142,86282.0,86281.0,0.014895]
[1766009736782,0.00035142,86282.0,86281.0,0.013895]
[1766009737360,0.76855229,86294.0,86281.0,0.013895]
[1766009737723,0.21607,86294.0,86281.0,0.013895]
[1766009737924,0.21607,86294.0,86281.0,0.0260685]
[1766009738128,0.21607,86294.0,86281.0,0.0270685]
[1766009738751,0.21607,86294.0,86281.0,0.014895]
[1766009738981,0.21768287,86294.0,86281.0,0.014895]
[1766009739199,0.21607,86290.0,86281.0,0.014895]
[1766009739409,0.21607,86288.0,86281.0,0.013895]
[1766009739580,0.0907,86289.0,86281.0,0.013895]
[1766009739821,0.0907,86285.0,86281.0,0.013895]
[1766009740132,0.21607,86282.0,86281.0,0.013895]
[1766009740758,0.0907,86282.0,86281.0,0.013895]
[1766009741394,0.88074,86282.0,86272.0,0.01832]
[1766009741593,0.88074,86282.0,86270.0,0.17654]
[1766009741594,0.0907,86281.0,86270.0,0.17654]
[1766009742008,0.0907,86281.0,86270.0,0.15822]
[1766009742202,0.0907,86281.0,86270.0,0.17654]
[1766009743328,0.0907,86281.0,86270.0,0.17754]
[1766009747272,0.0907,86281.0,86270.0,0.15922]
[1766009747586,0.0907,86281.0,86270.0,0.17754]
[1766009748316,0.63196846,86290.0,86259.0,0.24467381]
[1766009748317,0.0907,86277.0,86271.0,0.013895]
[1766009748457,0.0907,86277.0,86271.0,0.01426948]
[1766009748642,0.68115,86277.0,86271.0,0.01426948]
[1766009749493,0.0907,86277.0,86271.0,0.01526948]
[1766009749690,0.0907,86277.0,86271.0,0.01426948]
[1766009759216,0.0907,86280.0,86271.0,0.01426948]
[1766009759467,0.0907,86277.0,86271.0,0.01426948]
[1766009759679,0.0907,86277.0,86261.0,0.01832]
[1766009759680,0.68115,86277.0,86261.0,0.01832]
[1766009759887,0.68115,86277.0,86259.0,0.0012226]
[1766009759888,0.59045,86271.0,86268.0,0.013895]
[1766009760085,0.19959,86270.0,86268.0,0.013895]
[1766009761257,0.59045,86275.0,86268.0,0.013895]
[1766009761912,0.79004,86275.0,86268.0,0.013895]
[1766009762037,0.59045,86274.0,86268.0,0.013895]
[1766009762237,0.79004,86274.0,86268.0,0.013895]
[1766009762480,0.19959,86274.0,86268.0,0.013895]
[1766009765338,0.59045,86275.0,86268.0,0.013895]
[1766009765339,0.00037448,86277.0,86268.0,0.200285]
[1766009765785,0.01832,86289.0,86268.0,0.200285]
[1766009765786,0.00186666,86283.0,86269.0,0.03393847]
[1766009765996,0.00025553,86290.0,86281.0,0.013895]
[1766009766843,0.00025553,86290.0,86282.0,0.18452]
[1766009767180,0.00025553,86290.0,86281.0,0.013895]
[1766009767717,0.09095553,86290.0,86281.0,0.013895]
[1766009768034,0.0907,86287.0,86281.0,0.013895]
[1766009771941,0.0907,86289.0,86281.0,0.013895]
[1766009772918,0.19984553,86290.0,86281.0,0.013895]
[1766009772919,0.09095553,86290.0,86281.0,0.013895]
[1766009777854,0.00025553,86290.0,86282.0,0.18452]
[1766009778014,0.00025553,86290.0,86281.0,0.013895]
[1766009779417,0.09095553,86290.0,86281.0,0.013895]
[1766009783613,0.09095553,86290.0,86281.0,0.198415]
[1766009783970,0.09095553,86290.0,86281.0,0.013895]
[1766009785654,0.20802918,86290.0,86281.0,0.013895]
[1766009785826,0.0907,86288.0,86281.0,0.013895]
[1766009786044,0.85885287,86288.0,86281.0,0.013895]
[1766009786673,0.0907,86286.0,86281.0,0.013895]
[1766009786827,0.0907,86284.0,86281.0,0.013895]
[1766009788048,0.76815287,86288.0,86281.0,0.013895]
[1766009788049,0.0907,86287.0,86281.0,0.013895]
[1766009788253,0.09231287,86287.0,86281.0,0.013895]
[1766009789099,0.6969487,86288.0,86281.0,0.013895]
[1766009789302,0.57298,86289.0,86281.0,0.013895]
[1766009790220,0.00025553,86290.0,86281.0,0.013895]
[1766009790443,0.57323553,86290.0,86281.0,0.013895]
[1766009791007,0.001,86289.0,86281.0,0.013895]
[1766009791219,0.0907,86289.0,86281.0,0.013895]
[1766009791614,0.0907,86287.0,86281.0,0.013895]
[1766009793751,0.0917,86287.0,86281.0,0.013895]
[1766009796192,0.001,86287.0,86281.0,0.013895]
[1766009796392,6.072e-05,86289.0,86281.0,0.013895]
[1766009797811,0.00106072,86289.0,86281.0,0.013895]
[1766009798418,0.50461161,86291.0,86281.0,0.01550787]
[1766009799725,0.001,86289.0,86281.0,0.01550787]
[1766009800058,0.50461161,86291.0,86281.0,0.01550787]
[1766009800632,0.7209159,86291.0,86281.0,0.01550787]
[1766009800834,0.7219159,86291.0,86281.0,0.01550787]
[1766009801268,0.0917,86291.0,86281.0,0.01550787]
[1766009801622,0.7219159,86291.0,86281.0,0.01550787]
[1766009802445,0.7209159,86291.0,86281.0,0.01550787]
[1766009803290,0.50583889,86291.0,86281.0,0.01550787]
[1766009803899,0.76654,86292.0,86281.0,0.03734266]
[1766009804098,0.19356,86292.0,86281.0,0.03734266]
[1766009804315,0.19356,86292.0,86281.0,0.20002787]
[1766009804846,0.57855,86296.0,86281.0,0.20002787]
[1766009804998,0.78064,86296.0,86281.0,0.20002787]
[1766009805414,0.0907,86295.0,86281.0,0.20002787]
[1766009805617,0.78064,86296.0,86281.0,0.20002787]
[1766009805869,0.01818519,86300.0,86283.0,0.18452]
[1766009806182,0.6302159,86310.0,86283.0,0.18452]
[1766009806183,0.78064,86308.0,86283.0,0.18613287]
[1766009806515,0.20209,86308.0,86283.0,0.18613287]
[1766009806739,0.78064,86308.0,86296.0,0.013895]
[1766009807925,0.0907,86307.0,86296.0,0.03534937]
[1766009808130,0.0907,86307.0,86296.0,0.21986937]
[1766009808711,0.20209,86316.0,86297.0,0.18452]
[1766009808712,0.78064,86316.0,86297.0,0.18452]
[1766009808915,0.78075227,86316.0,86297.0,0.18613287]
[1766009809129,0.78075227,86316.0,86298.0,0.01832]
[1766009809305,0.78075227,86316.0,86299.0,0.18432]
[1766009809504,0.20220227,86316.0,86309.0,0.013895]
[1766009810137,0.00011227,86316.0,86309.0,0.013895]
[1766009810466,0.01832,86324.0,86309.0,0.013895]
[1766009810467,2.27e-06,86317.0,86311.0,0.18301]
[1766009810821,2.27e-06,86317.0,86311.0,0.18462287]
[1766009811002,0.001,86316.0,86313.0,0.18301]
[1766009811424,2.27e-06,86317.0,86313.0,0.18462287]
[1766009812416,2.27e-06,86317.0,86312.0,0.02168379]
[1766009812417,0.20229,86330.0,86317.0,0.18201]
[1766009812418,2.27e-06,86330.0,86317.0,0.18201]
[1766009812622,2.27e-06,86330.0,86329.0,0.195905]
[1766009812971,2.27e-06,86330.0,86329.0,0.19751787]
[1766009813414,0.001,86343.0,86329.0,0.01550787]
[1766009813623,0.00111225,86343.0,86330.0,0.18073]
[1766009813820,0.00111225,86343.0,86330.0,0.18234287]
[1766009814582,0.00211225,86343.0,86330.0,0.18234287]
[1766009814781,0.00111225,86343.0,86330.0,0.18234287]
[1766009815006,0.00111225,86343.0,86331.0,0.013895]
[1766009815185,0.0907,86342.0,86331.0,0.013895]
[1766009815393,0.0907,86342.0,86332.0,0.02341817]
[1766009815828,0.0907,86340.0,86331.0,0.013895]
[1766009816058,0.0907,86338.0,86331.0,0.013895]
[1766009816717,0.57855,86335.0,86331.0,0.013895]
[1766009816950,0.20209,86334.0,86331.0,0.013895]
[1766009817484,0.20209,86333.0,86331.0,0.013895]
[1766009819149,0.20209,86333.0,86327.0,0.01832]
[1766009819150,0.20209,86337.0,86327.0,0.01832]
[1766009819353,0.20209,86333.0,86327.0,0.01832]
[1766009819759,0.57855,86334.0,86309.0,0.195625]
[1766009819760,0.57855,86330.0,86309.0,0.195625]
[1766009819967,0.01158292,86334.0,86309.0,0.195625]
[1766009819968,0.57855,86324.0,86312.0,0.01832]
[1766009820169,0.78064,86321.0,86311.0,0.01832]
[1766009820500,0.78064,86321.0,86309.0,0.013895]
[1766009820501,0.78064,86321.0,86310.0,0.01832]
[1766009821596,0.57855,86320.0,86310.0,0.01832]
[1766009821822,0.78064,86320.0,86310.0,0.01832]
[1766009822674,0.78064,86320.0,86311.0,0.001]
[1766009823001,0.78064,86320.0,86310.0,0.01832]
[1766009823703,0.58036225,86320.0,86310.0,0.01832]
[1766009824637,0.58036225,86320.0,86310.0,0.0397145]
[1766009824865,0.0907,86336.0,86310.0,0.4217245]
[1766009825099,0.01319265,86336.0,86310.0,0.4217245]
[1766009825328,0.0907,86333.0,86310.0,0.4217245]
[1766009825547,0.00161,86336.0,86310.0,0.4217245]
[1766009825720,0.0907,86334.0,86312.0,0.38201]
[1766009826220,0.0907,86333.0,86312.0,0.40033]
[1766009826421,0.29279,86328.0,86312.0,0.40033]
[1766009827063,0.29279,86328.0,86322.0,0.013895]
[1766009828188,0.87295,86336.0,86322.0,0.013895]
[1766009828485,0.78064,86335.0,86322.0,0.013895]
[1766009828707,0.0907,86334.0,86322.0,0.013895]
[1766009828956,0.001,86328.0,86322.0,0.013895]
[1766009829161,0.0907,86334.0,86322.0,0.013895]
[1766009829315,0.87134,86334.0,86322.0,0.013895]
[1766009830623,0.00161,86336.0,86323.0,0.39591127]
[1766009830824,0.00161,86336.0,86323.0,0.38201]
[1766009832575,0.00025532,86338.0,86323.0,0.38201]
[1766009832576,0.00025532,86338.0,86324.0,0.3804]
[1766009832796,0.00025532,86338.0,86324.0,0.38201287]
[1766009833413,0.00025532,86338.0,86335.0,0.013895]
[1766009838978,0.0907,86337.0,86335.0,0.013895]
[1766009839975,0.00025532,86338.0,86335.0,0.013895]
[1766009840165,0.0907,86337.0,86335.0,0.013895]
[1766009842554,0.0907,86335.0,86324.0,0.00161287]
[1766009843555,0.0907,86335.0,86325.0,0.39429]
[1766009843757,0.87319532,86338.0,86325.0,0.39429]
[1766009843975,0.87319532,86338.0,86325.0,0.39590287]
[1766009845020,0.00025532,86338.0,86325.0,0.39590287]
[1766009845161,0.87294,86336.0,86325.0,0.00161287]
[1766009845358,0.87294,86336.0,86325.0,0.04442466]
[1766009845723,0.87294,86336.0,86325.0,0.00161287]
[1766009845865,0.28687,86336.0,86325.0,0.00161287]
[1766009851231,0.28687,86336.0,86325.0,0.39590287]
[1766009851432,0.28687,86336.0,86325.0,0.00161287]
[1766009851644,0.67677,86336.0,86325.0,0.00161287]
[1766009851853,0.0907,86332.0,86325.0,0.00161287]
[1766009853153,0.0907,86332.0,86325.0,0.00261287]
[1766009853753,0.58607,86333.0,86320.0,0.28727]
[1766009853754,0.58607,86324.0,86320.0,0.28727]
[1766009854142,0.19617,86321.0,86316.0,0.01832]
[1766009854354,0.58607,86324.0,86316.0,0.01832]
[1766009855137,0.00025532,86338.0,86322.0,0.013895]
[1766009855340,0.0907,86336.0,86322.0,0.013895]
[1766009855520,0.001,86332.0,86322.0,0.013895]
[1766009855738,0.67677,86328.0,86322.0,0.013895]
[1766009856140,0.87294,86328.0,86322.0,0.013895]
[1766009856637,0.0907,86328.0,86322.0,0.013895]
[1766009856839,0.0907,86330.0,86322.0,0.013895]
[1766009857065,0.87294,86328.0,86322.0,0.013895]
[1766009857403,0.0907,86326.0,86322.0,0.013895]
[1766009857609,0.19617,86324.0,86322.0,0.013895]
[1766009857747,0.78224,86324.0,86322.0,0.013895]
[1766009858085,0.58988226,86324.0,86322.0,0.013895]
[1766009859753,0.59149513,86324.0,86315.0,0.01832]
[1766009860036,0.19778287,86324.0,86315.0,0.01832]
[1766009861840,0.00161287,86324.0,86315.0,0.01832]
[1766009862658,0.0907,86328.0,86315.0,0.01832]
[1766009863565,0.0907,86328.0,86322.0,0.013895]
[1766009864563,0.0907,86329.0,86322.0,0.013895]
[1766009865177,0.0907,86327.0,86322.0,0.013895]
[1766009865333,0.3044,86327.0,86322.0,0.013895]
[1766009866430,0.0907,86332.0,86322.0,0.013895]
[1766009866629,0.90959,86332.0,86322.0,0.013895]
[1766009866782,0.91109119,86332.0,86322.0,0.013895]
[1766009866959,0.0907,86330.0,86322.0,0.013895]
[1766009867168,0.90959,86330.0,86322.0,0.013895]
[1766009868670,0.91109119,86330.0,86322.0,0.013895]
[1766009870578,0.00150119,86330.0,86322.0,0.013895]
[1766009870784,0.00150119,86330.0,86322.0,0.590055]
[1766009871195,0.00150119,86330.0,86322.0,0.013895]
[1766009873957,0.0907,86328.0,86322.0,0.013895]
[1766009878981,0.0907,86328.0,86322.0,0.00602]
[1766009878982,0.20616078,86328.0,86322.0,0.00602]
[1766009879176,0.20616078,86328.0,86313.0,0.01832]
[1766009879177,0.81889,86325.0,86313.0,0.01832]
[1766009879565,0.81889,86325.0,86313.0,0.59448]
[1766009881667,0.81889,86325.0,86313.0,0.57616]
[1766009881904,0.81889,86325.0,86314.0,0.01832]
[1766009882107,0.0907,86329.0,86315.0,0.57616]
[1766009882523,0.0907,86327.0,86315.0,0.57616]
[1766009883027,0.90959,86327.0,86314.0,0.01832]
[1766009884472,0.90959,86327.0,86314.0,0.59448]
[1766009885170,0.69589,86327.0,86322.0,0.013895]
[1766009885397,0.0907,86325.0,86322.0,0.013895]
[1766009889713,0.00150119,86330.0,86322.0,0.013895]
[1766009889714,0.09220119,86330.0,86322.0,0.013895]
[1766009890764,0.00150119,86330.0,86322.0,0.013895]
[1766009891361,0.202,86342.0,86323.0,0.59506]
[1766009891582,0.202,86342.0,86325.0,0.59506]
[1766009892669,0.20225532,86338.0,86335.0,0.013895]
[1766009892819,0.00025532,86338.0,86335.0,0.013895]
[1766009893659,0.03594079,86343.0,86336.0,0.59506]
[1766009893660,0.00111225,86343.0,86336.0,0.59506]
[1766009893863,2.25e-06,86343.0,86336.0,0.59506]
[1766009895841,2.25e-06,86343.0,86336.0,0.59606]
[1766009896281,2.25e-06,86343.0,86336.0,0.59506]
[1766009896956,2.25e-06,86343.0,86336.0,0.59706]
[1766009898983,2.25e-06,86346.0,86337.0,0.59506]
[1766009899187,0.00010187,86346.0,86337.0,0.59506]
[1766009899427,1.87e-06,86346.0,86337.0,0.59506]
[1766009900227,1.87e-06,86346.0,86337.0,0.59606]
[1766009900641,1.87e-06,86346.0,86339.0,0.59506]
[1766009901011,1.87e-06,86346.0,86341.0,0.59506]
[1766009901879,1.87e-06,86346.0,86343.0,0.59506]
[1766009902080,1.87e-06,86346.0,86345.0,0.59506]
[1766009902284,1.87e-06,86346.0,86337.0,0.01258251]
[1766009902286,0.6028,86345.0,86324.0,0.59506]
[1766009902506,0.6028,86345.0,86323.0,0.01832]
[1766009902507,0.6028,86345.0,86338.0,0.013895]
[1766009902508,0.20350119,86345.0,86338.0,0.013895]
[1766009902724,0.20350119,86345.0,86323.0,0.01832]
[1766009902725,0.202,86343.0,86341.0,0.001]
[1766009902949,0.202,86342.0,86330.0,0.59506]
[1766009903172,0.20350119,86342.0,86336.0,0.013895]
[1766009904226,0.6028,86343.0,86336.0,0.013895]
[1766009904449,0.0907,86353.0,86336.0,0.013895]
[1766009904450,0.0907,86359.0,86337.0,0.59506]
[1766009904662,0.0907,86359.0,86339.0,0.59506]
[1766009904663,0.01832,86358.0,86339.0,0.59506]
[1766009904872,0.01982119,86358.0,86339.0,0.59506]
[1766009905509,0.01982119,86358.0,86338.0,0.0608955]
[1766009905510,0.00150119,86358.0,86350.0,0.59506]
[1766009905718,0.00150119,86358.0,86349.0,0.013895]
[1766009905719,0.60430119,86358.0,86349.0,0.013895]
[1766009906528,0.00038292,86350.0,86349.0,0.013895]
[1766009906818,0.64235237,86358.0,86349.0,0.01550787]
[1766009908164,0.64135237,86358.0,86349.0,0.07656466]
[1766009908586,0.64235237,86358.0,86349.0,0.07656466]
[1766009908870,0.64135237,86358.0,86349.0,0.01550787]
[1766009909031,0.64235237,86358.0,86349.0,0.01550787]
[1766009909833,0.64135237,86358.0,86349.0,0.01550787]
[1766009911654,0.64235237,86358.0,86349.0,0.01550787]
[1766009912066,0.8048,86357.0,86349.0,0.01550787]
[1766009912273,0.8048,86357.0,86349.0,0.013895]
[1766009912538,0.202,86354.0,86337.0,9.962e-05]
[1766009912746,0.11546078,86357.0,86337.0,0.01399462]
[1766009912747,0.202,86347.0,86337.0,0.01399462]
[1766009912944,0.6028,86342.0,86337.0,4.62e-06]
[1766009913142,0.202,86339.0,86337.0,4.62e-06]
[1766009913357,0.62944792,86350.0,86337.0,4.62e-06]
[1766009913715,0.6028,86346.0,86337.0,4.62e-06]
[1766009914016,0.24417896,86357.0,86338.0,0.59506]
[1766009914017,0.0907,86355.0,86338.0,0.59506]
[1766009914293,0.0907,86353.0,86338.0,0.59506]
[1766009914477,0.2927,86353.0,86338.0,0.59506]
[1766009914669,0.2927,86353.0,86339.0,0.0138987]
[1766009914869,0.0907,86353.0,86340.0,0.59506]
[1766009915189,0.03482429,86356.0,86340.0,0.59667287]
[1766009915426,0.0907,86358.0,86340.0,0.59667287]
[1766009916792,0.6935,86357.0,86340.0,0.59667287]
[1766009917016,0.0907,86355.0,86340.0,0.59667287]
[1766009917197,0.0907,86353.0,86340.0,0.59667287]
[1766009917420,0.0907,86353.0,86337.0,4.62e-06]
[1766009917421,0.6028,86349.0,86337.0,0.01832462]
[1766009917612,0.62944792,86350.0,86337.0,0.01832462]
[1766009917613,0.8048,86345.0,86337.0,0.01832462]
[1766009917991,0.0907,86353.0,86337.0,4.62e-06]
[1766009918321,0.202,86351.0,86337.0,0.05951108]
[1766009918561,0.8048,86351.0,86337.0,0.00161749]
[1766009918694,0.8048,86351.0,86337.0,0.59667749]
[1766009919065,0.8048,86351.0,86337.0,0.59767749]
[1766009919066,0.202,86351.0,86337.0,0.59767749]
[1766009919203,0.202,86351.0,86337.0,0.59667749]
[1766009921112,0.00674412,86351.0,86337.0,0.65076749]
[1766009921307,0.00774412,86351.0,86337.0,0.65076749]
[1766009921644,0.00674412,86351.0,86337.0,0.65076749]
[1766009922231,0.00674412,86351.0,86338.0,0.73030675]
[1766009922557,0.00674412,86351.0,86338.0,0.66684287]
[1766009922758,0.59181,86350.0,86338.0,0.06372287]
[1766009922924,0.59181,86350.0,86338.0,0.00161287]
[1766009923120,0.2031,86349.0,86338.0,0.00161287]
[1766009923351,0.2031,86349.0,86339.0,0.06047375]
[1766009923549,0.2031,86349.0,86338.0,0.00161287]
[1766009924579,0.79491,86349.0,86338.0,0.00161287]
[1766009925193,0.2031,86348.0,86338.0,0.00161287]
[1766009925392,0.79491,86348.0,86338.0,0.00161287]
[1766009926423,0.2938,86356.0,86338.0,0.00161287]
[1766009926627,0.79491,86352.0,86338.0,0.00161287]
[1766009926784,0.59181,86352.0,86338.0,0.00161287]
[1766009926986,0.2031,86347.0,86338.0,0.00161287]
[1766009927191,0.79491,86346.0,86338.0,0.00161287]
[1766009927556,0.0907,86353.0,86338.0,0.00161287]
[1766009927779,0.59181,86350.0,86338.0,0.00161287]
[1766009928005,0.2031,86347.0,86338.0,0.00161287]
[1766009928205,0.79491,86346.0,86338.0,0.00161287]
[1766009928959,0.07159306,86353.0,86337.0,4.62e-06]
[1766009928960,0.68251,86349.0,86337.0,4.62e-06]
[1766009929213,0.0907,86346.0,86337.0,4.62e-06]